[Event "*** Titled Tuesday 3|2 Blitz"]
[Site "Chess.com"]
[Date "2015.08.04"]
[Round "3"]
[White "MFBerna"]
[Black "NMJeevanK"]
[Result "0-1"]
[WhiteElo "2068"]
[BlackElo "2079"]
[TimeControl "180+2"]
[EndTime "12:07:52 PDT"]
[Termination "NMJeevanK won on time"]

1. e4 {[%clk 0:02:43.9]} 1... e5 {[%clk 0:03:00.3]} 2. Nf3 {[%clk 0:02:44.7]}
2... Nc6 {[%clk 0:03:01.7]} 3. Bb5 {[%clk 0:02:45.6]} 3... a6 {[%clk 0:03:02.5]}
4. Ba4 {[%clk 0:02:46.9]} 4... Nf6 {[%clk 0:03:03]} 5. O-O {[%clk 0:02:45.3]}
5... Be7 {[%clk 0:03:04.1]} 6. Re1 {[%clk 0:02:46.1]} 6... b5 {[%clk 0:03:05.6]}
7. Bb3 {[%clk 0:02:47.3]} 7... d6 {[%clk 0:03:07.3]} 8. c3 {[%clk 0:02:48.5]}
8... O-O {[%clk 0:03:06.7]} 9. h3 {[%clk 0:02:48.7]} 9... Na5 {[%clk 0:03:06.5]}
10. Bc2 {[%clk 0:02:49.7]} 10... c5 {[%clk 0:03:08.1]} 11. d4 {[%clk 0:02:51]}
11... Qc7 {[%clk 0:03:07.3]} 12. Nbd2 {[%clk 0:02:52]} 12... Ne8 {[%clk
0:03:05]} 13. Nf1 {[%clk 0:02:50.4]} 13... g6 {[%clk 0:02:57.3]} 14. Bh6 {[%clk
0:02:37.7]} 14... Ng7 {[%clk 0:02:58]} 15. Ne3 {[%clk 0:02:36.7]} 15... Be6
{[%clk 0:02:35.4]} 16. a4 {[%clk 0:02:36.9]} 16... Rab8 {[%clk 0:02:30.3]} 17.
axb5 {[%clk 0:02:37.3]} 17... axb5 {[%clk 0:02:30.9]} 18. dxe5 {[%clk
0:02:23.7]} 18... dxe5 {[%clk 0:02:31.2]} 19. Nxe5 {[%clk 0:02:24.4]} 19... Qxe5
{[%clk 0:02:15.2]} 20. Rxa5 {[%clk 0:02:24]} 20... Rfd8 {[%clk 0:01:53.1]} 21.
Qe2 {[%clk 0:02:16.5]} 21... Nh5 {[%clk 0:01:51.8]} 22. Ng4 {[%clk 0:02:07.8]}
22... Bxg4 {[%clk 0:01:15]} 23. hxg4 {[%clk 0:01:56.9]} 23... Bd6 {[%clk
0:01:08.5]} 24. g3 {[%clk 0:01:49.9]} 24... Nxg3 {[%clk 0:01:05.5]} 25. Qf3
{[%clk 0:01:42.3]} 25... Ne2+ {[%clk 0:00:38.8]} 26. Rxe2 {[%clk 0:01:39.7]}
26... Qh2+ {[%clk 0:00:39.7]} 27. Kf1 {[%clk 0:01:41.3]} 27... Qxh6 {[%clk
0:00:40.4]} 28. Ra7 {[%clk 0:01:30.9]} 28... Rf8 {[%clk 0:00:40.6]} 29. e5
{[%clk 0:00:33.7]} 29... Qc1+ {[%clk 0:00:28.7]} 30. Kg2 {[%clk 0:00:32.1]}
30... Bxe5 {[%clk 0:00:28.4]} 31. Rxe5 {[%clk 0:00:34]} 31... Qxc2 {[%clk
0:00:29.4]} 32. Ree7 {[%clk 0:00:30.9]} 32... Qb3 {[%clk 0:00:27]} 33. g5 {[%clk
0:00:21.2]} 33... b4 {[%clk 0:00:25.4]} 34. Qf6 {[%clk 0:00:11.7]} 34... Qd5+
{[%clk 0:00:22]} 35. Kh2 {[%clk 0:00:12.5]} 35... bxc3 {[%clk 0:00:21.8]} 36.
bxc3 {[%clk 0:00:13.5]} 36... Rb1 {[%clk 0:00:18.2]} 37. Rxf7 {[%clk 0:00:05.7]}
37... Rxf7 {[%clk 0:00:08.5]} 38. Rxf7 {[%clk 0:00:04.5]} 38... Rh1+ {[%clk
0:00:09.4]} 39. Kg3 {[%clk 0:00:04.9]} 39... Qxf7 {[%clk 0:00:11.1]} 40. Qd8+
{[%clk 0:00:05.6]} 40... Kg7 {[%clk 0:00:12.6]} 41. Qc8 {[%clk 0:00:03.5]} 41...
Re1 {[%clk 0:00:11.5]} 42. Qxc5 {[%clk 0:00:03.4]} 42... Qe7 {[%clk 0:00:12.9]}
43. Qd4+ {[%clk 0:00:04]} 43... Qe5+ {[%clk 0:00:14]} 44. Qxe5+ {[%clk
0:00:04.6]} 44... Rxe5 {[%clk 0:00:15.7]} 0-1

[Event "*** Titled Tuesday 3|2 Blitz"]
[Site "Chess.com"]
[Date "2015.08.04"]
[Round "3"]
[White "Fawolizzo"]
[Black "Aygehovit1992"]
[Result "1-0"]
[WhiteElo "1897"]
[BlackElo "2356"]
[TimeControl "180+2"]
[EndTime "12:07:57 PDT"]
[Termination "Fawolizzo won by resignation"]

1. d4 {[%clk 0:03:01.9]} 1... d5 {[%clk 0:03:00.2]} 2. c4 {[%clk 0:03:02.4]}
2... e6 {[%clk 0:03:01.6]} 3. Nf3 {[%clk 0:03:03.1]} 3... Nf6 {[%clk 0:03:02.8]}
4. g3 {[%clk 0:03:03.5]} 4... Bb4+ {[%clk 0:03:03.1]} 5. Bd2 {[%clk 0:03:03.7]}
5... Be7 {[%clk 0:03:04.1]} 6. Qc2 {[%clk 0:03:03.4]} 6... O-O {[%clk
0:03:05.3]} 7. Bg2 {[%clk 0:03:03.9]} 7... c6 {[%clk 0:03:06.4]} 8. O-O {[%clk
0:03:00.8]} 8... Nbd7 {[%clk 0:03:07.5]} 9. Ne5 {[%clk 0:02:58.4]} 9... Nxe5
{[%clk 0:03:06.8]} 10. dxe5 {[%clk 0:02:58.5]} 10... Nd7 {[%clk 0:03:08]} 11.
Bc3 {[%clk 0:02:50.1]} 11... dxc4 {[%clk 0:03:05.6]} 12. Nd2 {[%clk 0:02:48.6]}
12... Nb6 {[%clk 0:03:03.7]} 13. a4 {[%clk 0:02:43.4]} 13... a5 {[%clk
0:03:04.1]} 14. Qe4 {[%clk 0:02:41]} 14... Nd5 {[%clk 0:02:41.5]} 15. Nxc4
{[%clk 0:02:40.9]} 15... b6 {[%clk 0:02:34]} 16. Rad1 {[%clk 0:02:35.6]} 16...
Ba6 {[%clk 0:02:33.1]} 17. Qg4 {[%clk 0:02:24.3]} 17... Qc7 {[%clk 0:02:30.4]}
18. Rxd5 {[%clk 0:02:05]} 18... cxd5 {[%clk 0:02:23.6]} 19. Nd6 {[%clk
0:02:04.7]} 19... f5 {[%clk 0:02:18.4]} 20. Qh5 {[%clk 0:01:52.1]} 20... Bxd6
{[%clk 0:02:15.1]} 21. exd6 {[%clk 0:01:51.6]} 21... Qxd6 {[%clk 0:02:16.7]} 22.
Rd1 {[%clk 0:01:49.6]} 22... Qe7 {[%clk 0:02:11.6]} 23. Be5 {[%clk 0:01:44.3]}
23... Rac8 {[%clk 0:02:12.5]} 24. h4 {[%clk 0:01:33.6]} 24... Rc2 {[%clk
0:02:12.5]} 25. Bf3 {[%clk 0:01:34.2]} 25... Rfc8 {[%clk 0:02:09.6]} 26. g4
{[%clk 0:01:15.3]} 26... fxg4 {[%clk 0:02:07.4]} 27. Bxg4 {[%clk 0:01:09.4]}
27... R8c4 {[%clk 0:01:55.6]} 28. Rd4 {[%clk 0:00:59.7]} 28... Rxd4 {[%clk
0:01:55.9]} 29. Bxd4 {[%clk 0:00:59.8]} 29... Rc1+ {[%clk 0:01:47.1]} 30. Kg2
{[%clk 0:00:58.3]} 30... b5 {[%clk 0:01:36.9]} 31. Qe5 {[%clk 0:00:56.4]} 31...
Bc8 {[%clk 0:01:05]} 32. axb5 {[%clk 0:00:55.7]} 32... h5 {[%clk 0:01:05.2]} 33.
Bh3 {[%clk 0:00:48.1]} 33... Rc4 {[%clk 0:00:58.6]} 34. b6 {[%clk 0:00:42]}
34... Qf6 {[%clk 0:00:52.3]} 35. b7 {[%clk 0:00:34.4]} 35... Qg6+ {[%clk
0:00:29.4]} 36. Kh2 {[%clk 0:00:33.8]} 36... Bxb7 {[%clk 0:00:28.2]} 37. Bxe6+
{[%clk 0:00:30.2]} 37... Kh8 {[%clk 0:00:29.4]} 38. Bf5 {[%clk 0:00:28.6]} 38...
Qf7 {[%clk 0:00:15]} 39. Be6 {[%clk 0:00:22.2]} 39... Qg6 {[%clk 0:00:10.6]} 40.
Bf5 {[%clk 0:00:19.9]} 40... Qf7 {[%clk 0:00:11.3]} 41. Bd3 {[%clk 0:00:19.2]}
41... Rc7 {[%clk 0:00:09.3]} 42. Qg5 {[%clk 0:00:10.5]} 42... Qe7 {[%clk
0:00:05.3]} 43. Qxh5+ {[%clk 0:00:10.7]} 43... Kg8 {[%clk 0:00:06.5]} 44. Bg6
{[%clk 0:00:11.1]} 44... Qd6+ {[%clk 0:00:07.6]} 45. Be5 {[%clk 0:00:08.9]}
45... Qc5 {[%clk 0:00:07.6]} 46. Qh7+ {[%clk 0:00:08]} 46... Kf8 {[%clk
0:00:08.6]} 47. Qh8+ {[%clk 0:00:08.9]} 47... Ke7 {[%clk 0:00:10]} 48. Qxg7+
{[%clk 0:00:09.9]} 1-0

[Event "*** Titled Tuesday 3|2 Blitz"]
[Site "Chess.com"]
[Date "2015.08.04"]
[Round "3"]
[White "Storne89"]
[Black "Beca95"]
[Result "1/2-1/2"]
[WhiteElo "2449"]
[BlackElo "2560"]
[TimeControl "180+2"]
[EndTime "12:08:07 PDT"]
[Termination "Game drawn by agreement"]

1. e4 {[%clk 0:02:56.4]} 1... g6 {[%clk 0:02:59.8]} 2. d4 {[%clk 0:02:56.5]}
2... Bg7 {[%clk 0:03:01.2]} 3. Nc3 {[%clk 0:02:57.1]} 3... d6 {[%clk 0:03:02.7]}
4. Nf3 {[%clk 0:02:56.8]} 4... a6 {[%clk 0:03:02.8]} 5. a4 {[%clk 0:02:57.3]}
5... Bg4 {[%clk 0:03:03.1]} 6. Be3 {[%clk 0:02:57]} 6... Nc6 {[%clk 0:03:03.5]}
7. d5 {[%clk 0:02:58.2]} 7... Ne5 {[%clk 0:03:02.3]} 8. Be2 {[%clk 0:02:58.7]}
8... Bxf3 {[%clk 0:03:03.7]} 9. Bxf3 {[%clk 0:03:00]} 9... Nf6 {[%clk
0:03:04.1]} 10. h3 {[%clk 0:02:58.6]} 10... O-O {[%clk 0:03:04.3]} 11. Be2
{[%clk 0:02:59.6]} 11... Ned7 {[%clk 0:03:05.4]} 12. O-O {[%clk 0:02:58.9]}
12... c6 {[%clk 0:03:06.8]} 13. Qd2 {[%clk 0:02:56.5]} 13... Rc8 {[%clk
0:03:07.9]} 14. Bh6 {[%clk 0:02:51]} 14... a5 {[%clk 0:03:04.4]} 15. Bxg7 {[%clk
0:02:50.3]} 15... Kxg7 {[%clk 0:03:06.3]} 16. Rfe1 {[%clk 0:02:45.1]} 16... Qb6
{[%clk 0:03:07.1]} 17. b3 {[%clk 0:02:45.7]} 17... Qb4 {[%clk 0:03:07.1]} 18.
Rad1 {[%clk 0:02:39]} 18... cxd5 {[%clk 0:02:51.1]} 19. Nxd5 {[%clk 0:02:37]}
19... Qxd2 {[%clk 0:02:52.1]} 20. Rxd2 {[%clk 0:02:37]} 20... Nxe4 {[%clk
0:02:53]} 21. Rd4 {[%clk 0:02:36.3]} 21... Nef6 {[%clk 0:02:35.6]} 22. Nxe7
{[%clk 0:02:29.8]} 22... Rxc2 {[%clk 0:02:36.2]} 23. Rxd6 {[%clk 0:02:19.8]}
23... Re8 {[%clk 0:02:36.3]} 24. Bb5 {[%clk 0:02:20.9]} 24... Kf8 {[%clk
0:02:26.9]} 25. Nxg6+ {[%clk 0:02:00.1]} 25... hxg6 {[%clk 0:02:20.7]} 26. Rxe8+
{[%clk 0:02:01.1]} 26... Kxe8 {[%clk 0:02:20.3]} 27. Rxf6 {[%clk 0:02:02.1]}
27... Ke7 {[%clk 0:02:19.1]} 28. Rf3 {[%clk 0:01:56.9]} 28... Rc1+ {[%clk
0:02:08.3]} 29. Kh2 {[%clk 0:01:57.6]} 29... Nc5 {[%clk 0:02:01.3]} 30. g4
{[%clk 0:01:48.4]} 30... Rc2 {[%clk 0:01:50.8]} 31. h4 {[%clk 0:01:39.2]} 31...
Ne4 {[%clk 0:01:33.6]} 32. Kg2 {[%clk 0:01:21.3]} 32... Nd6 {[%clk 0:01:32]} 33.
Bf1 {[%clk 0:01:06.1]} 33... Rc5 {[%clk 0:01:32.1]} 34. Bd3 {[%clk 0:01:01.7]}
34... Rc3 {[%clk 0:01:11]} 35. Re3+ {[%clk 0:01:00.7]} 35... Kf8 {[%clk
0:01:10.9]} 36. Be2 {[%clk 0:00:58.3]} 36... Rc5 {[%clk 0:01:11.1]} 37. f4
{[%clk 0:00:55.6]} 37... b5 {[%clk 0:00:53]} 38. axb5 {[%clk 0:00:56]} 38...
Nxb5 {[%clk 0:00:52.3]} 39. Bxb5 {[%clk 0:00:43.4]} 39... Rxb5 {[%clk
0:00:54.2]} 40. Kg3 {[%clk 0:00:44.6]} 40... Kg7 {[%clk 0:00:53.8]} 41. g5
{[%clk 0:00:45.4]} 41... Rb4 {[%clk 0:00:51.9]} 42. Kg4 {[%clk 0:00:46.7]} 42...
Kh7 {[%clk 0:00:43.8]} 43. Re7 {[%clk 0:00:45.4]} 43... Kg7 {[%clk 0:00:45.1]}
44. Ra7 {[%clk 0:00:46.9]} 44... Rxb3 {[%clk 0:00:46.3]} 45. Rxa5 {[%clk
0:00:48.5]} 45... Rb1 {[%clk 0:00:47]} 46. Ra3 {[%clk 0:00:49.5]} 46... Rf1
{[%clk 0:00:45.6]} 47. Rg3 {[%clk 0:00:46.3]} 47... f5+ {[%clk 0:00:37.6]} 48.
gxf6+ {[%clk 0:00:44.3]} 48... Kxf6 {[%clk 0:00:38.9]} 49. Ra3 {[%clk
0:00:44.9]} 49... Rg1+ {[%clk 0:00:39.2]} 50. Kf3 {[%clk 0:00:46]} 50... Rf1+
{[%clk 0:00:40.1]} 51. Kg3 {[%clk 0:00:46.8]} 51... Rg1+ {[%clk 0:00:41.1]} 52.
Kf3 {[%clk 0:00:48]} 52... Rf1+ {[%clk 0:00:42.1]} 53. Kg4 {[%clk 0:00:49.6]}
53... Rg1+ {[%clk 0:00:43]} 54. Rg3 {[%clk 0:00:51.3]} 54... Rh1 {[%clk
0:00:42.1]} 55. Rg2 {[%clk 0:00:51.6]} 55... Rb1 {[%clk 0:00:40.6]} 56. Ra2
{[%clk 0:00:38.9]} 56... Rg1+ {[%clk 0:00:39.7]} 57. Kf3 {[%clk 0:00:36]} 57...
Rf1+ {[%clk 0:00:40.5]} 58. Kg3 {[%clk 0:00:37.3]} 58... Rg1+ {[%clk 0:00:41.5]}
59. Kf2 {[%clk 0:00:37.8]} 59... Rg4 {[%clk 0:00:40.8]} 60. Kf3 {[%clk
0:00:33.5]} 60... Rxh4 {[%clk 0:00:40.2]} 61. Ra6+ {[%clk 0:00:33.8]} 1/2-1/2

[Event "*** Titled Tuesday 3|2 Blitz"]
[Site "Chess.com"]
[Date "2015.08.04"]
[Round "3"]
[White "tac49"]
[Black "pKiLz5Rn9b"]
[Result "1/2-1/2"]
[WhiteElo "2449"]
[BlackElo "2396"]
[TimeControl "180+2"]
[EndTime "12:08:07 PDT"]
[Termination "Game drawn by repetition"]

1. e4 {[%clk 0:03:01.2]} 1... e6 {[%clk 0:03:01.3]} 2. d4 {[%clk 0:03:01.2]}
2... d5 {[%clk 0:03:02.7]} 3. Nc3 {[%clk 0:03:00.1]} 3... Nf6 {[%clk 0:03:03.4]}
4. e5 {[%clk 0:03:01]} 4... Nfd7 {[%clk 0:03:04.9]} 5. f4 {[%clk 0:03:02.4]}
5... c5 {[%clk 0:03:06]} 6. Nf3 {[%clk 0:03:04.3]} 6... Nc6 {[%clk 0:03:07.6]}
7. Be3 {[%clk 0:03:04.7]} 7... a6 {[%clk 0:03:09.1]} 8. Qd2 {[%clk 0:03:01.5]}
8... b5 {[%clk 0:03:10.1]} 9. Be2 {[%clk 0:03:01.3]} 9... Qb6 {[%clk 0:03:10.5]}
10. a3 {[%clk 0:02:50.8]} 10... Bb7 {[%clk 0:03:07.4]} 11. O-O {[%clk
0:02:50.5]} 11... Rc8 {[%clk 0:03:06.4]} 12. Kh1 {[%clk 0:02:49.9]} 12... cxd4
{[%clk 0:03:03.9]} 13. Nxd4 {[%clk 0:02:51.8]} 13... Bc5 {[%clk 0:03:04]} 14.
Rad1 {[%clk 0:02:52.1]} 14... Nxd4 {[%clk 0:02:59.4]} 15. Bxd4 {[%clk 0:02:54]}
15... Bxd4 {[%clk 0:03:00.9]} 16. Qxd4 {[%clk 0:02:55.9]} 16... Qxd4 {[%clk
0:03:02.5]} 17. Rxd4 {[%clk 0:02:57.5]} 17... g6 {[%clk 0:03:01.9]} 18. Kg1
{[%clk 0:02:57.8]} 18... Rc7 {[%clk 0:02:59.7]} 19. Kf2 {[%clk 0:02:53.6]} 19...
O-O {[%clk 0:03:00.5]} 20. Ke3 {[%clk 0:02:50]} 20... Nb6 {[%clk 0:02:56.8]} 21.
Rfd1 {[%clk 0:02:21.4]} 21... Rfc8 {[%clk 0:02:55.4]} 22. Bd3 {[%clk 0:02:00.7]}
22... f6 {[%clk 0:02:43.3]} 23. exf6 {[%clk 0:01:58.7]} 23... Kf7 {[%clk
0:02:44.9]} 24. Ne2 {[%clk 0:01:52.2]} 24... Kxf6 {[%clk 0:02:41.2]} 25. Ng1
{[%clk 0:01:51.7]} 25... Na4 {[%clk 0:02:32.5]} 26. Rb1 {[%clk 0:01:36.6]} 26...
Nc5 {[%clk 0:02:14.8]} 27. Nf3 {[%clk 0:01:35.2]} 27... Nxd3 {[%clk 0:02:15.6]}
28. cxd3 {[%clk 0:01:33.4]} 28... Rc2 {[%clk 0:02:17.1]} 29. g3 {[%clk 0:01:23]}
29... Rg2 {[%clk 0:02:08.5]} 30. b3 {[%clk 0:00:42.1]} 30... Rcc2 {[%clk
0:02:03.2]} 31. Re1 {[%clk 0:00:43.1]} 31... Ra2 {[%clk 0:02:01.4]} 32. a4
{[%clk 0:00:43.1]} 32... bxa4 {[%clk 0:02:01.9]} 33. Rxa4 {[%clk 0:00:42.3]}
33... Rab2 {[%clk 0:01:59.1]} 34. Rb4 {[%clk 0:00:42.5]} 34... Bc6 {[%clk
0:01:58.3]} 35. Rb6 {[%clk 0:00:43]} 35... Bb5 {[%clk 0:01:46.8]} 36. Nd4 {[%clk
0:00:41]} 36... Bd7 {[%clk 0:01:48.2]} 37. Rc1 {[%clk 0:00:37]} 37... g5 {[%clk
0:01:12]} 38. Rc7 {[%clk 0:00:28.4]} 38... gxf4+ {[%clk 0:01:10.2]} 39. gxf4
{[%clk 0:00:30.3]} 39... Rxh2 {[%clk 0:00:32.6]} 40. Rxd7 {[%clk 0:00:29.5]}
40... Rh3+ {[%clk 0:00:33.3]} 41. Nf3 {[%clk 0:00:30.8]} 41... Rb1 {[%clk
0:00:31.2]} 42. Rdd6 {[%clk 0:00:17.1]} 42... Rf1 {[%clk 0:00:27]} 43. Rxe6+
{[%clk 0:00:18.4]} 43... Kf7 {[%clk 0:00:28.6]} 44. Rf6+ {[%clk 0:00:17.5]}
44... Ke7 {[%clk 0:00:30.1]} 45. Rh6 {[%clk 0:00:16.9]} 45... Rfxf3+ {[%clk
0:00:28.1]} 46. Ke2 {[%clk 0:00:17.1]} 46... Re3+ {[%clk 0:00:29.6]} 47. Kf2
{[%clk 0:00:17.8]} 47... Ref3+ {[%clk 0:00:29.9]} 48. Ke2 {[%clk 0:00:18.3]}
48... Re3+ {[%clk 0:00:27.5]} 49. Kf2 {[%clk 0:00:19.5]} 49... Ref3+ {[%clk
0:00:13.5]} 50. Ke2 {[%clk 0:00:20.4]} 50... Re3+ {[%clk 0:00:15]} 1/2-1/2

[Event "*** Titled Tuesday 3|2 Blitz"]
[Site "Chess.com"]
[Date "2015.08.04"]
[Round "3"]
[White "stepanosinovsky"]
[Black "AnthonyWirig"]
[Result "0-1"]
[WhiteElo "2267"]
[BlackElo "2528"]
[TimeControl "180+2"]
[EndTime "12:08:11 PDT"]
[Termination "AnthonyWirig won by checkmate"]

1. g3 {[%clk 0:03:01.9]} 1... d5 {[%clk 0:03:00.7]} 2. Bg2 {[%clk 0:03:03.8]}
2... Nc6 {[%clk 0:03:02]} 3. d3 {[%clk 0:03:04]} 3... e5 {[%clk 0:03:02.6]} 4.
Nd2 {[%clk 0:03:05.6]} 4... Be6 {[%clk 0:03:03.7]} 5. e4 {[%clk 0:03:06.2]} 5...
Bc5 {[%clk 0:02:59.3]} 6. Ngf3 {[%clk 0:03:06.4]} 6... Nf6 {[%clk 0:02:57.4]} 7.
O-O {[%clk 0:03:06.6]} 7... O-O {[%clk 0:02:56.4]} 8. c3 {[%clk 0:03:05.6]} 8...
dxe4 {[%clk 0:02:57.4]} 9. dxe4 {[%clk 0:03:05.5]} 9... a5 {[%clk 0:02:51.5]}
10. a4 {[%clk 0:03:03.9]} 10... Qd3 {[%clk 0:02:48.7]} 11. Ne1 {[%clk
0:02:57.7]} 11... Qd7 {[%clk 0:02:46.7]} 12. Qe2 {[%clk 0:02:58.6]} 12... Rfd8
{[%clk 0:02:42.5]} 13. Nc4 {[%clk 0:02:57.1]} 13... Qd1 {[%clk 0:02:25.4]} 14.
Qxd1 {[%clk 0:02:44.2]} 14... Rxd1 {[%clk 0:02:27.3]} 15. Ne3 {[%clk 0:02:43.3]}
15... Bxe3 {[%clk 0:02:23.7]} 16. fxe3 {[%clk 0:02:43.7]} 16... Rad8 {[%clk
0:02:15.2]} 17. Bf3 {[%clk 0:02:43.5]} 17... Bc4 {[%clk 0:01:58.2]} 18. b3
{[%clk 0:01:52]} 18... Bxf1 {[%clk 0:01:54.6]} 19. Kxf1 {[%clk 0:01:53.1]} 19...
R1d7 {[%clk 0:01:37.6]} 20. Ke2 {[%clk 0:01:51.1]} 20... g5 {[%clk 0:01:36.6]}
21. h3 {[%clk 0:01:21.4]} 21... h5 {[%clk 0:01:37.2]} 22. Bg2 {[%clk 0:01:18.2]}
22... g4 {[%clk 0:01:35.8]} 23. h4 {[%clk 0:01:18.3]} 23... Rd1 {[%clk
0:01:21.4]} 24. Rb1 {[%clk 0:00:48.1]} 24... R8d2+ {[%clk 0:01:14.7]} 25. Bxd2
{[%clk 0:00:31.2]} 25... Rxb1 {[%clk 0:01:14.8]} 26. Nd3 {[%clk 0:00:19.1]}
26... Rxb3 {[%clk 0:01:12.5]} 27. Nc5 {[%clk 0:00:20]} 27... Rb1 {[%clk
0:01:06.4]} 28. Be1 {[%clk 0:00:13.2]} 28... b6 {[%clk 0:01:06.2]} 29. Na6
{[%clk 0:00:13.8]} 29... Ne8 {[%clk 0:01:03.1]} 30. Bf1 {[%clk 0:00:14.4]} 30...
Kf8 {[%clk 0:01:00.4]} 31. Kf2 {[%clk 0:00:15.3]} 31... Ke7 {[%clk 0:01:00.7]}
32. Bc4 {[%clk 0:00:12.6]} 32... Rb2+ {[%clk 0:00:57.4]} 33. Kf1 {[%clk
0:00:13]} 33... Nd8 {[%clk 0:00:49.6]} 34. Nb8 {[%clk 0:00:10.8]} 34... c6
{[%clk 0:00:44.8]} 35. Bd3 {[%clk 0:00:09.6]} 35... Nd6 {[%clk 0:00:38.6]} 36.
c4 {[%clk 0:00:09.6]} 36... Rb3 {[%clk 0:00:38.2]} 37. Ke2 {[%clk 0:00:09.1]}
37... c5 {[%clk 0:00:37.8]} 38. Na6 {[%clk 0:00:08.7]} 38... Kd7 {[%clk
0:00:36.7]} 39. Bc2 {[%clk 0:00:08.1]} 39... Ra3 {[%clk 0:00:33.9]} 40. Bd2
{[%clk 0:00:02.2]} 40... Nxc4 {[%clk 0:00:33.7]} 41. Bc1 {[%clk 0:00:03.4]}
41... Rc3 {[%clk 0:00:33]} 42. Kd1 {[%clk 0:00:03.5]} 42... Nxe3+ {[%clk
0:00:33.7]} 43. Bxe3 {[%clk 0:00:04.6]} 43... Rxe3 {[%clk 0:00:34.7]} 44. Kd2
{[%clk 0:00:05.9]} 44... Rxg3 {[%clk 0:00:35.5]} 45. Bd3 {[%clk 0:00:07.5]}
45... Rxd3+ {[%clk 0:00:34.7]} 46. Kxd3 {[%clk 0:00:08.3]} 46... Kc6 {[%clk
0:00:34.5]} 47. Kc4 {[%clk 0:00:08.8]} 47... g3 {[%clk 0:00:34.8]} 48. Nb8+
{[%clk 0:00:05.7]} 48... Kc7 {[%clk 0:00:36.1]} 49. Na6+ {[%clk 0:00:07]} 49...
Kb7 {[%clk 0:00:37.6]} 50. Kb5 {[%clk 0:00:08.3]} 50... g2 {[%clk 0:00:37.5]}
51. Nc7 {[%clk 0:00:05.7]} 51... Kxc7 {[%clk 0:00:37.9]} 52. Ka6 {[%clk
0:00:06.9]} 52... g1=Q {[%clk 0:00:38.3]} 53. Ka7 {[%clk 0:00:08.3]} 53... Qg4
{[%clk 0:00:38.8]} 54. Ka8 {[%clk 0:00:07.2]} 54... Qxe4+ {[%clk 0:00:39.4]} 55.
Ka7 {[%clk 0:00:07.5]} 55... Qb7# {[%clk 0:00:41]} 0-1

[Event "*** Titled Tuesday 3|2 Blitz"]
[Site "Chess.com"]
[Date "2015.08.04"]
[Round "3"]
[White "Zlatan56"]
[Black "Dlugy"]
[Result "1-0"]
[WhiteElo "2432"]
[BlackElo "2539"]
[TimeControl "180+2"]
[EndTime "12:08:13 PDT"]
[Termination "Zlatan56 won by resignation"]

1. Nf3 {[%clk 0:03:01.9]} 1... g6 {[%clk 0:03:00.2]} 2. e4 {[%clk 0:03:01.9]}
2... Bg7 {[%clk 0:02:58.5]} 3. d4 {[%clk 0:03:03]} 3... c6 {[%clk 0:02:59.8]} 4.
Nc3 {[%clk 0:03:02.7]} 4... d5 {[%clk 0:03:00.9]} 5. h3 {[%clk 0:03:03.6]} 5...
Nf6 {[%clk 0:03:01.6]} 6. e5 {[%clk 0:03:04.4]} 6... Ne4 {[%clk 0:03:02.8]} 7.
Nxe4 {[%clk 0:03:05.5]} 7... dxe4 {[%clk 0:03:04]} 8. Ng5 {[%clk 0:03:06.6]}
8... c5 {[%clk 0:03:05.4]} 9. e6 {[%clk 0:03:07.9]} 9... Qxd4 {[%clk 0:02:54.9]}
10. exf7+ {[%clk 0:02:58.4]} 10... Kf8 {[%clk 0:02:56.1]} 11. Be3 {[%clk
0:02:57.5]} 11... Qxd1+ {[%clk 0:02:53.4]} 12. Rxd1 {[%clk 0:02:59.4]} 12... Nc6
{[%clk 0:02:53.1]} 13. c3 {[%clk 0:02:54.4]} 13... h6 {[%clk 0:02:42.8]} 14.
Nxe4 {[%clk 0:02:54.1]} 14... b6 {[%clk 0:02:44.2]} 15. Bc4 {[%clk 0:02:37.2]}
15... Bf5 {[%clk 0:02:44.1]} 16. Ng3 {[%clk 0:02:33.3]} 16... Bc2 {[%clk
0:02:13.6]} 17. Rd2 {[%clk 0:02:29.6]} 17... Ne5 {[%clk 0:02:14.7]} 18. Be6
{[%clk 0:01:38.8]} 18... Ba4 {[%clk 0:02:14.6]} 19. O-O {[%clk 0:01:35.5]} 19...
Nxf7 {[%clk 0:02:10.6]} 20. Bd7 {[%clk 0:01:29.1]} 20... Bxd7 {[%clk 0:02:06.7]}
21. Rxd7 {[%clk 0:01:30.7]} 21... Ne5 {[%clk 0:02:07.5]} 22. Rb7 {[%clk
0:01:28.6]} 22... Kf7 {[%clk 0:02:05.5]} 23. Re1 {[%clk 0:01:24.4]} 23... Rhd8
{[%clk 0:01:57.3]} 24. Bxh6 {[%clk 0:01:16.3]} 24... Bf6 {[%clk 0:01:58.6]} 25.
Ne4 {[%clk 0:01:12.7]} 25... Rd7 {[%clk 0:01:40.7]} 26. Rxd7 {[%clk 0:01:12.8]}
26... Nxd7 {[%clk 0:01:42.6]} 27. Rd1 {[%clk 0:01:13.9]} 27... Ne5 {[%clk
0:01:42.3]} 28. Bf4 {[%clk 0:01:14.6]} 28... Nc4 {[%clk 0:01:43.1]} 29. Bc1
{[%clk 0:01:15.3]} 29... Ke6 {[%clk 0:01:19.4]} 30. Kf1 {[%clk 0:01:15.6]} 30...
Rc8 {[%clk 0:01:18.1]} 31. Ke2 {[%clk 0:01:15.8]} 31... b5 {[%clk 0:01:19.6]}
32. Rd3 {[%clk 0:01:06.8]} 32... b4 {[%clk 0:01:18.3]} 33. Rg3 {[%clk
0:00:47.4]} 33... Kf7 {[%clk 0:01:07.2]} 34. b3 {[%clk 0:00:42.4]} 34... Ne5
{[%clk 0:01:01.8]} 35. c4 {[%clk 0:00:43.1]} 35... Nc6 {[%clk 0:01:02.3]} 36.
Be3 {[%clk 0:00:43.2]} 36... Nd4+ {[%clk 0:01:03.4]} 37. Bxd4 {[%clk 0:00:43.9]}
37... Bxd4 {[%clk 0:01:05.1]} 38. h4 {[%clk 0:00:41.1]} 38... Rc6 {[%clk
0:01:06]} 39. Rd3 {[%clk 0:00:41]} 39... Re6 {[%clk 0:01:01.6]} 40. f3 {[%clk
0:00:35.7]} 40... Ra6 {[%clk 0:01:02.1]} 41. Rd2 {[%clk 0:00:36.4]} 41... Rc6
{[%clk 0:00:58.1]} 42. f4 {[%clk 0:00:33.5]} 42... a5 {[%clk 0:00:59.3]} 43.
Ng5+ {[%clk 0:00:32.8]} 43... Kf6 {[%clk 0:00:57.8]} 44. Nf3 {[%clk 0:00:34.2]}
44... Bc3 {[%clk 0:00:58.8]} 45. Rd8 {[%clk 0:00:31.7]} 45... a4 {[%clk
0:00:54.8]} 46. Ra8 {[%clk 0:00:29.6]} 46... Re6+ {[%clk 0:00:55.1]} 47. Kd3
{[%clk 0:00:29.9]} 47... Rd6+ {[%clk 0:00:56.2]} 48. Ke2 {[%clk 0:00:27.6]}
48... Re6+ {[%clk 0:00:57]} 49. Kf2 {[%clk 0:00:28.9]} 49... a3 {[%clk
0:00:54.8]} 50. Rd8 {[%clk 0:00:26]} 50... Re4 {[%clk 0:00:51.4]} 51. g3 {[%clk
0:00:26.4]} 51... Kg7 {[%clk 0:00:48.8]} 52. Rd5 {[%clk 0:00:27.2]} 52... Bd4+
{[%clk 0:00:38.5]} 53. Nxd4 {[%clk 0:00:27.7]} 53... cxd4 {[%clk 0:00:39.5]} 54.
Re5 {[%clk 0:00:21.4]} 54... Rxe5 {[%clk 0:00:35.8]} 55. fxe5 {[%clk 0:00:23.3]}
55... Kf7 {[%clk 0:00:36.6]} 56. g4 {[%clk 0:00:24.3]} 56... Ke6 {[%clk
0:00:37.7]} 57. h5 {[%clk 0:00:25.4]} 57... gxh5 {[%clk 0:00:38]} 58. gxh5
{[%clk 0:00:26.9]} 58... Kxe5 {[%clk 0:00:39.9]} 59. h6 {[%clk 0:00:27]} 59...
Kf6 {[%clk 0:00:36]} 60. c5 {[%clk 0:00:27.5]} 60... Kg6 {[%clk 0:00:36.3]} 61.
c6 {[%clk 0:00:28.4]} 61... Kxh6 {[%clk 0:00:38.2]} 62. c7 {[%clk 0:00:29.6]}
62... e5 {[%clk 0:00:38.8]} 63. c8=Q {[%clk 0:00:30.3]} 63... e4 {[%clk
0:00:40.3]} 64. Qe6+ {[%clk 0:00:31]} 1-0